{"text_format":"1","workbook":"xlsx","n_sheets":3,"sheets":["Реестр спецификаций","Спецификации","Разные данные"],"not_rendered":{"charts":0,"images":0,"macros":1,"external_links":0,"defined_names":1,"comments":0,"pivot_tables":0},"unopened":[],"bounds":{"document_bytes":16777216,"sheet_cells":100000,"rows_first":2000,"rows_last":500,"rows_between":2000,"halvings":0,"cell_chars":16384,"cell_head_chars":4096},"cells_cut":0,"cells_raw":0,"read":"whole","date_system":"1900"}

{"sheet":"Реестр спецификаций","index":0,"n_rows":68,"n_cols":7,"rows_kept":68,"cut":false,"hidden":false,"merged":[[0,0,0,6]]}
["РЕЕСТР ЗАКАЗОВ-СПЕЦИФИКАЦИЙ"]
[]
["№",null,"ФИО","Адрес доставки\\установки","Контактный\nтелефон","e-mail","Стоимость\nизделий \nруб."]
[1,null,"Иванов Иван Иванович","Санкт-Петербург","8-911-ХХХ","111@mail.ru",{"$f":"Спецификации!C21","v":0}]
[{"$f":"A4+1","v":2},null,"Сидоров А.А.","Сертолово","8-921-ХХХ","222@mail.ru",{"$f":"Спецификации!C22","v":0}]
[{"$f":"A5+1","v":3}]
[4]
[5]
[6]
[7]
[8]
[9]
[10]
[11]
[12]
[13]
[14]
[15]
[16]
[17]
[18]
[19]
[20]
[21]
[22]
[23]
[24]
[{"$f":"A27+1","v":25}]
[26]
[27]
[28]
[29]
[{"$f":"A32+1","v":30}]
[31]
[32]
[33]
[34]
[35]
[36]
[37]
[38]
[39]
[40]
[41]
[42]
[{"$f":"A45+1","v":43}]
[44]
[45]
[46]
[47]
[48]
[{"$f":"A51+1","v":49}]
[50]
[51]
[52]
[53]
[54]
[55]
[56]
[57]
[58]
[59]
[60]
[61]
[62]
[63]
[64]
[65]

{"sheet":"Спецификации","index":1,"n_rows":70,"n_cols":8,"rows_kept":70,"cut":false,"hidden":false,"merged":[[34,0,34,2],[9,3,9,4],[10,3,10,4],[11,3,11,4],[12,3,12,4],[13,3,13,4],[30,0,30,2],[31,0,31,2],[32,0,32,2],[17,0,17,7],[12,5,12,7],[13,5,13,7],[6,0,6,1],[9,0,9,1],[8,0,8,1],[10,0,10,1],[11,0,11,1],[7,0,7,5],[6,2,6,7],[8,2,8,4],[10,5,10,7],[11,5,11,7],[0,0,0,2],[2,2,2,7],[3,2,3,7],[4,2,4,7],[5,2,5,7],[0,4,0,7],[2,0,2,1],[3,0,3,1],[4,0,4,1],[5,0,5,1],[31,4,32,5],[28,1,28,7],[13,0,13,1],[14,0,14,1],[9,5,9,7],[12,0,12,1],[14,3,14,4],[25,1,25,7],[19,0,19,1],[20,0,20,1],[21,0,21,1],[14,5,14,7],[22,0,22,1],[38,0,38,1],[38,2,38,7],[39,0,39,1],[39,2,39,7],[40,0,40,1],[40,2,40,7],[41,0,41,1],[41,2,41,7],[42,0,42,5],[43,0,43,1],[43,2,43,4],[44,0,44,1],[44,3,44,4],[44,5,44,7],[45,0,45,1],[45,3,45,4],[45,5,45,7],[46,0,46,1],[46,3,46,4],[46,5,46,7],[47,0,47,1],[47,3,47,4],[47,5,47,7],[48,0,48,1],[48,3,48,4],[48,5,48,7],[49,0,49,1],[49,3,49,4],[49,5,49,7],[37,2,37,7],[37,0,37,1],[35,4,35,7],[35,0,35,2],[69,0,69,2],[60,1,60,7],[63,1,63,7],[65,0,65,2],[66,0,66,2],[66,4,67,5],[67,0,67,2],[52,0,52,7],[54,0,54,1],[55,0,55,1],[56,0,56,1],[57,0,57,1]]}
["ЗАКАЗ-СПЕЦИФИКАЦИЯ № ",null,null,{"$f":"'Реестр спецификаций'!A4","v":1},"к договору №________ от ___.___.2017г."]
[]
["Исполнитель:",null,"ООО \"ПРИВЕТ\"\nИНН\nКПП\nОГРН\nАДРЕС"]
["Заказчик:",null,{"$f":"'Реестр спецификаций'!C4","v":"Иванов Иван Иванович"}]
["Адрес доставки\\\nустановки:",null,{"$f":"'Реестр спецификаций'!D4","v":"Санкт-Петербург"}]
["Конт. телефон:",null,{"$f":"'Реестр спецификаций'!E4","v":"8-911-ХХХ"}]
["E-mail:",null,{"$f":"'Реестр спецификаций'!F4","v":"111@mail.ru"}]
[]
["Вид изделия:",null,null,null,null,"Кол-во",0,"шт."]
["Название параметра",null,"Значение параметра","Примечание"]
[{"$f":"IF($C$9='Разные данные'!$B$2,'Разные данные'!$A$17,IF($C$9='Разные данные'!$B$3,'Разные данные'!$B$17,IF($C$9='Разные данные'!$B$4,'Разные данные'!$B$17,IF($C$9='Разные данные'!$B$5,'Разные данные'!$B$17,IF($C$9='Разные данные'!$B$6,'Разные данные'!$B$17,IF($C$9='Разные данные'!$B$7,'Разные данные'!$B$17,IF($C$9='Разные данные'!$B$8,'Разные данные'!$B$17,IF($C$9='Разные данные'!$B$9,'Разные данные'!$B$17,IF($C$9='Разные данные'!$B$10,'Разные данные'!$B$17,IF($C$9='Разные данные'!$B$11,'Разные данные'!$B$17,IF($C$9='Разные данные'!$B$12,'Разные данные'!$B$17,IF($C$9='Разные данные'!$B$13,\"-\"))))))))))))","v":"-"}]
[{"$f":"IF($C$9='Разные данные'!$B$2,'Разные данные'!$A$22,IF($C$9='Разные данные'!$B$3,'Разные данные'!$B$22,IF($C$9='Разные данные'!$B$4,'Разные данные'!$B$22,IF($C$9='Разные данные'!$B$5,'Разные данные'!$B$22,IF($C$9='Разные данные'!$B$6,'Разные данные'!$B$22,IF($C$9='Разные данные'!$B$7,'Разные данные'!$B$22,IF($C$9='Разные данные'!$B$8,'Разные данные'!$B$22,IF($C$9='Разные данные'!$B$9,'Разные данные'!$B$22,IF($C$9='Разные данные'!$B$10,'Разные данные'!$B$22,IF($C$9='Разные данные'!$B$11,'Разные данные'!$B$22,IF($C$9='Разные данные'!$B$12,'Разные данные'!$B$22,IF($C$9='Разные данные'!$B$13,\"-\"))))))))))))","v":"-"}]
[{"$f":"IF($C$9='Разные данные'!$B$2,'Разные данные'!$A$27,IF($C$9='Разные данные'!$B$3,'Разные данные'!$B$27,IF($C$9='Разные данные'!$B$4,'Разные данные'!$B$27,IF($C$9='Разные данные'!$B$5,'Разные данные'!$B$27,IF($C$9='Разные данные'!$B$6,'Разные данные'!$B$27,IF($C$9='Разные данные'!$B$7,'Разные данные'!$B$27,IF($C$9='Разные данные'!$B$8,'Разные данные'!$B$27,IF($C$9='Разные данные'!$B$9,'Разные данные'!$B$27,IF($C$9='Разные данные'!$B$10,'Разные данные'!$B$27,IF($C$9='Разные данные'!$B$11,'Разные данные'!$B$27,IF($C$9='Разные данные'!$B$12,'Разные данные'!$B$27,IF($C$9='Разные данные'!$B$13,\"-\"))))))))))))","v":"-"}]
[{"$f":"IF($C$9='Разные данные'!$B$2,'Разные данные'!$A$32,IF($C$9='Разные данные'!$B$3,'Разные данные'!$B$32,IF($C$9='Разные данные'!$B$4,'Разные данные'!$B$32,IF($C$9='Разные данные'!$B$5,'Разные данные'!$B$32,IF($C$9='Разные данные'!$B$6,'Разные данные'!$B$32,IF($C$9='Разные данные'!$B$7,'Разные данные'!$B$32,IF($C$9='Разные данные'!$B$8,'Разные данные'!$B$32,IF($C$9='Разные данные'!$B$9,'Разные данные'!$B$32,IF($C$9='Разные данные'!$B$10,'Разные данные'!$B$32,IF($C$9='Разные данные'!$B$11,'Разные данные'!$B$32,IF($C$9='Разные данные'!$B$12,'Разные данные'!$B$32,IF($C$9='Разные данные'!$B$13,\"-\"))))))))))))","v":"-"}]
[{"$f":"IF($C$9='Разные данные'!$B$2,'Разные данные'!$A$37,IF($C$9='Разные данные'!$B$3,'Разные данные'!$B$37,IF($C$9='Разные данные'!$B$4,'Разные данные'!$B$37,IF($C$9='Разные данные'!$B$5,'Разные данные'!$B$37,IF($C$9='Разные данные'!$B$6,'Разные данные'!$B$37,IF($C$9='Разные данные'!$B$7,'Разные данные'!$B$37,IF($C$9='Разные данные'!$B$8,'Разные данные'!$B$37,IF($C$9='Разные данные'!$B$9,'Разные данные'!$B$37,IF($C$9='Разные данные'!$B$10,'Разные данные'!$B$37,IF($C$9='Разные данные'!$B$11,'Разные данные'!$B$37,IF($C$9='Разные данные'!$B$12,'Разные данные'!$B$37,IF($C$9='Разные данные'!$B$13,\"-\"))))))))))))","v":"-"}]
[]
["Дополнение:"]
[]
[]
["Цена за 1 изделие",null,0,"рублей"]
["Стоимость изделий",null,{"$f":"G9*C20","v":0},"рублей"]
["Доставка",null,0,"рублей"]
["Установка",null,0,"рублей"]
[]
["СУММА \nЗАКАЗА",null,{"$f":"C21+C22+C23","v":0},"рублей"]
[null,{"$f":"ЧислоПрописьюВалюта(C25,1)","v":"рублей 00коп."}]
[]
["Аванс 30%",null,{"$f":"ROUND((C21)*0.3,0)","v":0},"рублей"]
[null,{"$f":"ЧислоПрописьюВалюта(C28,1)","v":"рублей 00коп."}]
[]
["Исполнитель",null,null,null,"Заказчик:"]
["ООО \"Привет\"",null,null,null,{"$f":"C4","v":"Иванов Иван Иванович"}]
["Генеральный директор"]
[]
["__________/__________________/",null,null,null,"__________/_________________/"]
["ЗАКАЗ-СПЕЦИФИКАЦИЯ № ",null,null,null,"к договору №________ от ___.___.2017г."]
[]
["Исполнитель:",null,"ООО \"ПРИВЕТ\"\nИНН\nКПП\nОГРН\nАДРЕС"]
["Заказчик:"]
["Адрес доставки\\\nустановки:"]
["Конт. телефон:"]
["E-mail:"]
[]
["Вид изделия:",null,null,null,null,"Кол-во",0,"шт."]
["Название параметра",null,"Значение параметра","Примечание"]
[{"$f":"IF($C$9='Разные данные'!$B$2,'Разные данные'!$A$17,IF($C$9='Разные данные'!$B$3,'Разные данные'!$B$17,IF($C$9='Разные данные'!$B$4,'Разные данные'!$B$17,IF($C$9='Разные данные'!$B$5,'Разные данные'!$B$17,IF($C$9='Разные данные'!$B$6,'Разные данные'!$B$17,IF($C$9='Разные данные'!$B$7,'Разные данные'!$B$17,IF($C$9='Разные данные'!$B$8,'Разные данные'!$B$17,IF($C$9='Разные данные'!$B$9,'Разные данные'!$B$17,IF($C$9='Разные данные'!$B$10,'Разные данные'!$B$17,IF($C$9='Разные данные'!$B$11,'Разные данные'!$B$17,IF($C$9='Разные данные'!$B$12,'Разные данные'!$B$17,IF($C$9='Разные данные'!$B$13,\"-\"))))))))))))","v":"-"}]
[{"$f":"IF($C$9='Разные данные'!$B$2,'Разные данные'!$A$22,IF($C$9='Разные данные'!$B$3,'Разные данные'!$B$22,IF($C$9='Разные данные'!$B$4,'Разные данные'!$B$22,IF($C$9='Разные данные'!$B$5,'Разные данные'!$B$22,IF($C$9='Разные данные'!$B$6,'Разные данные'!$B$22,IF($C$9='Разные данные'!$B$7,'Разные данные'!$B$22,IF($C$9='Разные данные'!$B$8,'Разные данные'!$B$22,IF($C$9='Разные данные'!$B$9,'Разные данные'!$B$22,IF($C$9='Разные данные'!$B$10,'Разные данные'!$B$22,IF($C$9='Разные данные'!$B$11,'Разные данные'!$B$22,IF($C$9='Разные данные'!$B$12,'Разные данные'!$B$22,IF($C$9='Разные данные'!$B$13,\"-\"))))))))))))","v":"-"}]
[{"$f":"IF($C$9='Разные данные'!$B$2,'Разные данные'!$A$27,IF($C$9='Разные данные'!$B$3,'Разные данные'!$B$27,IF($C$9='Разные данные'!$B$4,'Разные данные'!$B$27,IF($C$9='Разные данные'!$B$5,'Разные данные'!$B$27,IF($C$9='Разные данные'!$B$6,'Разные данные'!$B$27,IF($C$9='Разные данные'!$B$7,'Разные данные'!$B$27,IF($C$9='Разные данные'!$B$8,'Разные данные'!$B$27,IF($C$9='Разные данные'!$B$9,'Разные данные'!$B$27,IF($C$9='Разные данные'!$B$10,'Разные данные'!$B$27,IF($C$9='Разные данные'!$B$11,'Разные данные'!$B$27,IF($C$9='Разные данные'!$B$12,'Разные данные'!$B$27,IF($C$9='Разные данные'!$B$13,\"-\"))))))))))))","v":"-"}]
[{"$f":"IF($C$9='Разные данные'!$B$2,'Разные данные'!$A$32,IF($C$9='Разные данные'!$B$3,'Разные данные'!$B$32,IF($C$9='Разные данные'!$B$4,'Разные данные'!$B$32,IF($C$9='Разные данные'!$B$5,'Разные данные'!$B$32,IF($C$9='Разные данные'!$B$6,'Разные данные'!$B$32,IF($C$9='Разные данные'!$B$7,'Разные данные'!$B$32,IF($C$9='Разные данные'!$B$8,'Разные данные'!$B$32,IF($C$9='Разные данные'!$B$9,'Разные данные'!$B$32,IF($C$9='Разные данные'!$B$10,'Разные данные'!$B$32,IF($C$9='Разные данные'!$B$11,'Разные данные'!$B$32,IF($C$9='Разные данные'!$B$12,'Разные данные'!$B$32,IF($C$9='Разные данные'!$B$13,\"-\"))))))))))))","v":"-"}]
[{"$f":"IF($C$9='Разные данные'!$B$2,'Разные данные'!$A$37,IF($C$9='Разные данные'!$B$3,'Разные данные'!$B$37,IF($C$9='Разные данные'!$B$4,'Разные данные'!$B$37,IF($C$9='Разные данные'!$B$5,'Разные данные'!$B$37,IF($C$9='Разные данные'!$B$6,'Разные данные'!$B$37,IF($C$9='Разные данные'!$B$7,'Разные данные'!$B$37,IF($C$9='Разные данные'!$B$8,'Разные данные'!$B$37,IF($C$9='Разные данные'!$B$9,'Разные данные'!$B$37,IF($C$9='Разные данные'!$B$10,'Разные данные'!$B$37,IF($C$9='Разные данные'!$B$11,'Разные данные'!$B$37,IF($C$9='Разные данные'!$B$12,'Разные данные'!$B$37,IF($C$9='Разные данные'!$B$13,\"-\"))))))))))))","v":"-"}]
[]
["Дополнение:"]
[]
[]
["Цена за 1 изделие",null,0,"рублей"]
["Стоимость изделий",null,{"$f":"G44*C55","v":0},"рублей"]
["Доставка",null,0,"рублей"]
["Установка",null,0,"рублей"]
[]
["СУММА \nЗАКАЗА",null,{"$f":"C56+C57+C58","v":0},"рублей"]
[null,{"$f":"ЧислоПрописьюВалюта(C60,1)","v":"рублей 00коп."}]
[]
["Аванс 30%",null,{"$f":"ROUND((C56)*0.3,0)","v":0},"рублей"]
[null,{"$f":"ЧислоПрописьюВалюта(C63,1)","v":"рублей 00коп."}]
[]
["Исполнитель",null,null,null,"Заказчик:"]
["ООО \"ПРИВЕТ\""]
["Генеральный директор"]
[]
["__________/__________________./",null,null,null,"__________/_________________/"]

{"sheet":"Разные данные","index":2,"n_rows":37,"n_cols":2,"rows_kept":37,"cut":false,"hidden":false,"merged":[[34,0,34,1],[1,0,12,0],[14,0,14,1],[19,0,19,1],[24,0,24,1],[29,0,29,1]]}
[]
["Тип изделия","Ремонтная накладка на подоконник"]
[null,"Москитная сетка стандартная Z-крепление"]
[null,"Москитная сетка стандартная штоковое крепление"]
[null,"Москитная сетка РУЛОННАЯ"]
[null,"Москитная сетка ПЛИССЕ"]
[null,"Москитная сетка АНТИПЫЛЬ"]
[null,"Москитная сетка АНТИКОШКА"]
[null,"Москитная сетка РАЗДВИЖНАЯ на лоджию "]
[null,"Москитная сетка на балконную дверь (профиль 25)"]
[null,"Москитная сетка на балконную дверь (профиль 32)"]
[null,"Москитная сетка АРОЧНАЯ стандартная"]
[]
[]
["Параметр 1"]
["Ремонтная накладка \nна подоконник","Москитные сетки "]
["Длина","Ширина"]
[]
[]
["Параметр 2"]
["Ремонтная накладка \nна подоконник","Москитные сетки "]
["Ширина","Высота"]
[]
[]
["Параметр 3"]
["Ремонтная накладка \nна подоконник","Москитные сетки "]
["Высота загиба","Цвет"]
[]
[]
["Параметр 4"]
["Ремонтная накладка \nна подоконник","Москитные сетки "]
["Цвет","-"]
[]
[]
["Параметр 5"]
["Ремонтная накладка \nна подоконник","Москитные сетки "]
["Кол-во заглушек, шт.","-"]